fUSD/lending_fUSD_20260525
["ID","MTS","AMOUNT","RATE_DAILY","PERIOD"]
[422987423,1779713440000,-500.0,0.00012653,2]
[422987426,1779713440000,-500.0,0.00012653,2]
[422987418,1779713440000,-500.0,0.00012653,2]
[422987420,1779713440000,-500.0,0.00012653,2]
[422987470,1779713440000,-500.0,0.00012653,2]
[422987460,1779713440000,-500.0,0.00012653,2]
[422987458,1779713440000,-500.0,0.00012653,2]
[422987519,1779713440000,-154.40903449,0.00012752,2]
[422987521,1779713440000,-1116.93168818,0.00012754,3]
[422987473,1779713440000,-500.0,0.00012654,2]
[422987515,1779713440000,-151.0,0.00012752,2]
[422987525,1779713440000,-157.40533485,0.00012754,2]
[422987508,1779713440000,-262.0789949,0.000127,2]
[422987517,1779713440000,-151.0,0.00012752,2]
[422987510,1779713440000,-5000.0,0.00012711,2]
[422987527,1779713440000,-151.0,0.00012755,2]
[422987529,1779713440000,-155.750009,0.00012755,2]
[422987531,1779713440000,-897152.44581106,0.00012755,2]
[422987537,1779713440000,-773.78,0.00012555,2]
[422987554,1779713440000,-4226.22,0.00012555,2]
[422987555,1779713440000,-2933.98713728,0.00012755,2]
[422987523,1779713440000,-1236.95033188,0.00012754,3]
[422987506,1779713440000,-16022.62508521,0.000127,2]
[422987512,1779713440000,-17874.0,0.0001274,2]
[422987489,1779713440000,-500.0,0.00012654,2]
[422987464,1779713440000,-500.0,0.00012653,2]
[422987462,1779713440000,-500.0,0.00012653,2]
[422987504,1779713440000,-900.0,0.000127,4]
[422987479,1779713440000,-500.0,0.00012654,2]
[422987477,1779713440000,-168.23644325,0.00012654,2]
[422987481,1779713440000,-341.07411956,0.00012654,2]
[422987491,1779713440000,-500.0,0.00012654,2]
[422987475,1779713440000,-500.0,0.00012654,2]
[422987485,1779713440000,-389.15618004,0.00012654,2]
[422987500,1779713440000,-171.58070749,0.00012691,2]
[422987483,1779713440000,-500.0,0.00012654,2]
[422987488,1779713440000,-500.0,0.00012654,2]
[422987502,1779713440000,-180.22759195,0.000127,2]
[422987496,1779713440000,-1439805.7076,0.00012655,2]
[422987498,1779713440000,-7851.70076512,0.00012676,2]
[422987494,1779713440000,-300.0,0.00012654,2]
[422987607,1779713443000,-1590.0,0.00012755,2]
[422987672,1779713446000,-902.8679133,0.00013224,2]
[422987669,1779713446000,-11251.37577091,0.00013079,2]
[422987668,1779713446000,-960.0,0.00013,2]
[422987676,1779713446000,-500.0,0.00013356,2]
[422987677,1779713446000,-1100.0,0.00013356,2]
[422987663,1779713446000,-5864.55882099,0.00012819,2]
[422987686,1779713446000,-500.0,0.00013452,5]
[422987678,1779713446000,-160.0,0.00013406,2]
[422987681,1779713446000,-500.0,0.00013452,5]
[422987670,1779713446000,-151.0,0.00013151,2]
[422987682,1779713446000,-500.0,0.00013452,5]
[422987666,1779713446000,-1800.0,0.000129,4]
[422987671,1779713446000,-260.783653,0.00013151,2]
[422987673,1779713446000,-7851.70076512,0.00013311,2]
[422987665,1779713446000,-902.8679133,0.00012889,2]
[422987664,1779713446000,-5386.81694992,0.00012819,2]
[422987675,1779713446000,-500.0,0.00013356,2]
[422987674,1779713446000,-11251.37577091,0.00013339,2]
[422987662,1779713446000,-208.87966228,0.00012809,2]
[422987661,1779713446000,-215.38528485,0.00012809,2]
[422987660,1779713446000,-235.38549762,0.000128,4]
[422987659,1779713446000,-1164.61450238,0.000128,4]
[422987667,1779713446000,-7851.70076512,0.00012993,2]
[422987679,1779713446000,-500.0,0.00013452,5]
[422987680,1779713446000,-500.57071091,0.00013452,5]
[422987687,1779713446000,-279.11068258,0.00013452,5]
[422987688,1779713446000,-500.0,0.00013452,5]
[422987707,1779713446000,-500.0,0.00013452,5]
[422987708,1779713446000,-500.0,0.00013452,5]
[422987709,1779713446000,-500.0,0.00013452,5]
[422987706,1779713446000,-500.0,0.00013452,5]
[422987703,1779713446000,-500.0,0.00013452,5]
[422987705,1779713446000,-500.0,0.00013452,5]
[422987702,1779713446000,-500.0,0.00013452,5]
[422987691,1779713446000,-500.0,0.00013452,5]
[422987696,1779713446000,-500.0,0.00013452,5]
[422987698,1779713446000,-500.0,0.00013452,5]
[422987693,1779713446000,-500.0,0.00013452,5]
[422987704,1779713446000,-500.0,0.00013452,5]
[422987692,1779713446000,-500.0,0.00013452,5]
[422987689,1779713446000,-500.0,0.00013452,5]
[422987683,1779713446000,-500.0,0.00013452,5]
[422987685,1779713446000,-500.0,0.00013452,5]
[422987684,1779713446000,-500.0,0.00013452,5]
[422987695,1779713446000,-500.0,0.00013452,5]
[422987690,1779713446000,-500.0,0.00013452,5]
[422987694,1779713446000,-226.18441098,0.00013452,5]
[422987699,1779713446000,-500.0,0.00013452,5]
[422987697,1779713446000,-500.0,0.00013452,5]
[422987700,1779713446000,-500.0,0.00013452,5]
[422987701,1779713446000,-500.0,0.00013452,5]
[422987755,1779713447000,-500.0,0.00013452,5]
[422987749,1779713447000,-150.0,0.00013452,5]
[422987747,1779713447000,-405.00866086,0.00013452,5]
[422987748,1779713447000,-158.0,0.00013452,5]
[422987750,1779713447000,-150.0,0.00013452,5]
[422987754,1779713447000,-169.00270148,0.00013452,5]
[422987742,1779713447000,-500.0,0.00013452,5]
[422987745,1779713447000,-500.0,0.00013452,5]
[422987746,1779713447000,-500.83413808,0.00013452,5]
[422987751,1779713447000,-207.92383891,0.00013452,5]
[422987753,1779713447000,-500.55843501,0.00013452,5]
[422987757,1779713447000,-500.0,0.00013452,5]
[422987752,1779713447000,-500.0,0.00013452,5]
[422987758,1779713447000,-500.0,0.00013452,5]
[422987769,1779713447000,-150.0,0.00013452,5]
[422987760,1779713447000,-500.0,0.00013452,5]
[422987761,1779713447000,-500.0,0.00013452,5]
[422987766,1779713447000,-150.0,0.00013452,5]
[422987762,1779713447000,-500.0,0.00013452,5]
[422987765,1779713447000,-150.0,0.00013452,5]
[422987768,1779713447000,-150.0,0.00013452,5]
[422987763,1779713447000,-500.0,0.00013452,5]
[422987759,1779713447000,-500.0,0.00013452,5]
[422987764,1779713447000,-505.7497438,0.00013452,5]
[422987770,1779713447000,-200.0,0.00013452,5]
[422987780,1779713447000,-500.0,0.00013452,5]
[422987743,1779713447000,-500.0,0.00013452,5]
[422987781,1779713447000,-504.64553665,0.00013452,5]
[422987773,1779713447000,-500.0,0.00013452,5]
[422987767,1779713447000,-200.0,0.00013452,5]
[422987744,1779713447000,-500.0,0.00013452,5]
[422987741,1779713447000,-500.0,0.00013452,5]
[422987737,1779713447000,-500.0,0.00013452,5]
[422987714,1779713447000,-500.0,0.00013452,5]
[422987713,1779713447000,-500.0,0.00013452,5]
[422987715,1779713447000,-500.0,0.00013452,5]
[422987710,1779713447000,-500.0,0.00013452,5]
[422987712,1779713447000,-500.0,0.00013452,5]
[422987711,1779713447000,-500.0,0.00013452,5]
[422987727,1779713447000,-500.0,0.00013452,5]
[422987717,1779713447000,-500.0,0.00013452,5]
[422987728,1779713447000,-500.0,0.00013452,5]
[422987716,1779713447000,-500.0,0.00013452,5]
[422987718,1779713447000,-500.0,0.00013452,5]
[422987719,1779713447000,-500.0,0.00013452,5]
[422987721,1779713447000,-500.0,0.00013452,5]
[422987722,1779713447000,-500.0,0.00013452,5]
[422987739,1779713447000,-500.0,0.00013452,5]
[422987724,1779713447000,-167.99592479,0.00013452,5]
[422987720,1779713447000,-500.0,0.00013452,5]
[422987726,1779713447000,-500.0,0.00013452,5]
[422987723,1779713447000,-500.0,0.00013452,5]
[422987775,1779713447000,-500.0,0.00013452,5]
[422987740,1779713447000,-500.0,0.00013452,5]
[422987729,1779713447000,-500.0,0.00013452,5]
[422987730,1779713447000,-500.0,0.00013452,5]
[422987732,1779713447000,-500.0,0.00013452,5]
[422987733,1779713447000,-500.0,0.00013452,5]
[422987734,1779713447000,-500.0,0.00013452,5]
[422987731,1779713447000,-500.0,0.00013452,5]
[422987735,1779713447000,-500.0,0.00013452,5]
[422987738,1779713447000,-500.0,0.00013452,5]
[422987736,1779713447000,-500.0,0.00013452,5]
[422987725,1779713447000,-500.0,0.00013452,5]
[422987772,1779713447000,-500.0,0.00013452,5]
[422987756,1779713447000,-500.0,0.00013452,5]
[422987776,1779713447000,-500.0,0.00013452,5]
[422987820,1779713447000,-1246.0,0.00013699,5]
[422987810,1779713447000,-209.239854,0.00013659,2]
[422987813,1779713447000,-200.0,0.00013699,2]
[422987821,1779713447000,-1246.0,0.00013699,5]
[422987812,1779713447000,-554.06567151,0.00013698,2]
[422987817,1779713447000,-1246.0,0.00013699,5]
[422987819,1779713447000,-1246.0,0.00013699,5]
[422987816,1779713447000,-1246.0,0.00013699,5]
[422987818,1779713447000,-1246.0,0.00013699,5]
[422987815,1779713447000,-1246.0,0.00013699,5]
[422987833,1779713447000,-1246.0,0.00013699,5]
[422987823,1779713447000,-1246.0,0.00013699,5]
[422987834,1779713447000,-1246.0,0.00013699,5]
[422987829,1779713447000,-1246.0,0.00013699,5]
[422987811,1779713447000,-163.57297,0.00013659,2]
[422987835,1779713447000,-1246.0,0.00013699,5]
[422987832,1779713447000,-1246.0,0.00013699,5]
[422987830,1779713447000,-1246.0,0.00013699,5]
[422987825,1779713447000,-1246.0,0.00013699,5]
[422987831,1779713447000,-1246.0,0.00013699,5]
[422987824,1779713447000,-1246.0,0.00013699,5]
[422987822,1779713447000,-1246.0,0.00013699,5]
[422987828,1779713447000,-1246.0,0.00013699,5]
[422987827,1779713447000,-1246.0,0.00013699,5]
[422987836,1779713447000,-1246.0,0.00013699,5]
[422987837,1779713447000,-1246.0,0.00013699,5]
[422987841,1779713447000,-150.0,0.00013737,2]
[422987840,1779713447000,-288.43521936,0.0001373,2]
[422987771,1779713447000,-500.0,0.00013452,5]
[422987839,1779713447000,-150.0,0.00013702,2]
[422987826,1779713447000,-1246.0,0.00013699,5]
[422987814,1779713447000,-166.66,0.00013699,2]
[422987838,1779713447000,-1247.60551705,0.00013699,5]
[422987805,1779713447000,-587.0,0.00013612,2]
[422987774,1779713447000,-500.0,0.00013452,5]
[422987809,1779713447000,-2351.0,0.00013648,2]
[422987779,1779713447000,-500.0,0.00013452,5]
[422987778,1779713447000,-500.0,0.00013452,5]
[422987792,1779713447000,-591.06253547,0.00013452,2]
[422987794,1779713447000,-150.0,0.00013488,2]
[422987783,1779713447000,-500.0,0.00013452,2]
[422987793,1779713447000,-270.98968918,0.00013452,5]
[422987795,1779713447000,-150.0,0.00013488,2]
[422987782,1779713447000,-500.0,0.00013452,2]
[422987785,1779713447000,-500.0,0.00013452,2]
[422987784,1779713447000,-500.0,0.00013452,2]
[422987786,1779713447000,-500.0,0.00013452,2]
[422987787,1779713447000,-500.0,0.00013452,2]
[422987789,1779713447000,-500.0,0.00013452,2]
[422987777,1779713447000,-500.0,0.00013452,5]
[422987791,1779713447000,-500.0,0.00013452,2]
[422987790,1779713447000,-500.0,0.00013452,2]
[422987806,1779713447000,-7851.70076512,0.00013629,2]
[422987798,1779713447000,-150.0,0.00013488,2]
[422987802,1779713447000,-150.0,0.00013559,2]
[422987804,1779713447000,-11251.37577091,0.00013599,2]
[422987800,1779713447000,-150.0,0.00013488,2]
[422987799,1779713447000,-150.0,0.00013488,2]
[422987796,1779713447000,-150.0,0.00013488,2]
[422987807,1779713447000,-150.0,0.0001363,2]
[422987808,1779713447000,-173.11,0.00013638,2]
[422987797,1779713447000,-150.64808401,0.00013488,2]
[422987788,1779713447000,-500.0,0.00013452,2]
[422987801,1779713447000,-150.0,0.00013488,2]
[422987803,1779713447000,-902.8679133,0.00013559,2]
[422987884,1779713448000,-150.0,0.0001413,2]
[422987886,1779713448000,-150.0,0.00014201,2]
[422987882,1779713448000,-166.66,0.0001411,2]
[422987880,1779713448000,-150.0,0.00014059,2]
[422987873,1779713448000,-500.0,0.00014038,2]
[422987879,1779713448000,-500.0,0.00014058,2]
[422987877,1779713448000,-555.06801264,0.00014038,2]
[422987888,1779713448000,-644.02,0.00014235,2]
[422987887,1779713448000,-902.8679133,0.0001423,2]
[422987883,1779713448000,-11251.37577091,0.0001412,2]
[422987872,1779713448000,-500.0,0.00014038,2]
[422987881,1779713448000,-150.0,0.00014087,2]
[422987885,1779713448000,-2316.0,0.00014156,2]
[422987894,1779713448000,-150.0,0.00014344,2]
[422987890,1779713448000,-150.0,0.00014237,2]
[422987889,1779713448000,-150.0,0.00014237,2]
[422987900,1779713448000,-150.0,0.00014415,2]
[422987892,1779713448000,-3353.82135804,0.0001425,2]
[422987896,1779713448000,-11251.37577091,0.0001438,2]
[422987898,1779713448000,-150.0,0.00014387,2]
[422987899,1779713448000,-2300.0,0.000144,5]
[422987895,1779713448000,-2316.0,0.0001436,2]
[422987893,1779713448000,-150.0,0.00014273,2]
[422987897,1779713448000,-166.66,0.00014384,2]
[422987901,1779713448000,-960.0,0.00014444,2]
[422987902,1779713448000,-150.0,0.00014487,2]
[422987871,1779713448000,-500.0,0.00014038,2]
[422987912,1779713448000,-400.0,0.000146,5]
[422987891,1779713448000,-166.66,0.00014247,2]
[422987870,1779713448000,-464.4985681,0.00014038,2]
[422987852,1779713448000,-150.0,0.00013916,2]
[422987868,1779713448000,-500.0,0.00014038,2]
[422987908,1779713448000,-150.0,0.00014558,2]
[422987847,1779713448000,-166.66,0.00013836,2]
[422987844,1779713448000,-433.0,0.0001379,2]
[422987848,1779713448000,-150.0,0.00013844,2]
[422987842,1779713448000,-150.0,0.00013773,2]
[422987845,1779713448000,-16022.6250852,0.000138,2]
[422987843,1779713448000,-150.0,0.00013787,2]
[422987846,1779713448000,-500.0,0.00013836,2]
[422987850,1779713448000,-150.0,0.00013862,2]
[422987860,1779713448000,-166.66,0.00013973,2]
[422987855,1779713448000,-3558.962,0.00013956,2]
[422987856,1779713448000,-626.0,0.00013956,2]
[422987851,1779713448000,-902.8679133,0.00013895,2]
[422987862,1779713448000,-150.0,0.00013987,2]
[422987859,1779713448000,-1271.0,0.00013956,2]
[422987861,1779713448000,-150.0,0.00013987,2]
[422987849,1779713448000,-11251.37577091,0.0001386,2]
[422987858,1779713448000,-519.0,0.00013956,2]
[422987853,1779713448000,-33211.5749,0.00013937,2]
[422987854,1779713448000,-928.0,0.00013956,2]
[422987857,1779713448000,-1224.0,0.00013956,2]
[422987875,1779713448000,-500.0,0.00014038,2]
[422987874,1779713448000,-500.0,0.00014038,2]
[422987864,1779713448000,-150.0,0.00013987,2]
[422987876,1779713448000,-500.0,0.00014038,2]
[422987863,1779713448000,-150.0,0.00013987,2]
[422987866,1779713448000,-500.0,0.00014038,2]
[422987865,1779713448000,-195.84112978,0.00014038,2]
[422987867,1779713448000,-500.0,0.00014038,2]
[422987869,1779713448000,-500.0,0.00014038,2]
[422987911,1779713448000,-1521.0,0.00014592,5]
[422987878,1779713448000,-580.57,0.00014038,2]
[422987903,1779713448000,-150.0,0.00014487,2]
[422987940,1779713448000,-151.0,0.0001486,2]
[422987946,1779713448000,-158.38740846,0.000149,2]
[422987951,1779713448000,-150.0,0.00014915,2]
[422987948,1779713448000,-11251.37577091,0.000149,2]
[422987943,1779713448000,-10000.0,0.000149,2]
[422987944,1779713448000,-288.43521936,0.000149,2]
[422987942,1779713448000,-196.81573323,0.0001489,2]
[422987949,1779713448000,-902.8679133,0.000149,2]
[422987947,1779713448000,-158.38740846,0.000149,2]
[422987941,1779713448000,-200.0,0.00014876,2]
[422987950,1779713448000,-16022.6250852,0.000149,2]
[422987953,1779713448000,-823.0,0.00014954,2]
[422987955,1779713448000,-93507.1656287,0.00014955,2]
[422987954,1779713448000,-5235.0112249,0.00014955,2]
[422987956,1779713448000,-7318.0,0.00014959,2]
[422987958,1779713448000,-1168.0888929,0.00014982,2]
[422987964,1779713448000,-199.11874836,0.00014986,2]
[422987957,1779713448000,-350.0,0.00014967,2]
[422987965,1779713448000,-150.0,0.00014986,2]
[422987963,1779713448000,-263.26296792,0.00014986,2]
[422987962,1779713448000,-150.0,0.00014986,2]
[422987960,1779713448000,-355.0,0.00014985,4]
[422987959,1779713448000,-20864.2688417,0.00014982,2]
[422987961,1779713448000,-150.0,0.00014986,2]
[422987966,1779713448000,-216.749532,0.00014986,2]
[422987967,1779713448000,-150.0,0.00014986,2]
[422987969,1779713448000,-4655.447648,0.00014988,2]
[422987968,1779713448000,-260.6358617,0.00014988,2]
[422987904,1779713448000,-150.0,0.00014487,2]
[422987952,1779713448000,-150.0,0.00014924,2]
[422987945,1779713448000,-1082.0,0.000149,5]
[422987970,1779713448000,-196.81573323,0.0001499,2]
[422987937,1779713448000,-357.63889,0.0001485,2]
[422987913,1779713448000,-150.0,0.00014612,2]
[422987909,1779713448000,-902.8679133,0.00014565,2]
[422987910,1779713448000,-1607.0,0.00014592,5]
[422987907,1779713448000,-700.0,0.00014524,2]
[422987906,1779713448000,-400.0,0.000145,5]
[422987905,1779713448000,-150.0,0.00014487,2]
[422987916,1779713448000,-151.0,0.00014612,2]
[422987917,1779713448000,-151.0,0.00014612,2]
[422987918,1779713448000,-151.0,0.00014612,2]
[422987915,1779713448000,-171.5,0.00014612,2]
[422987926,1779713448000,-150.0,0.00014701,2]
[422987921,1779713448000,-11251.37577091,0.0001464,2]
[422987919,1779713448000,-350.0,0.00014629,2]
[422987920,1779713448000,-150.0,0.00014629,2]
[422987914,1779713448000,-2237.517,0.00014612,2]
[422987924,1779713448000,-6287.11964689,0.000147,2]
[422987925,1779713448000,-400.0,0.000147,5]
[422987935,1779713448000,-150.0,0.00014844,2]
[422987938,1779713448000,-357.63889,0.0001486,2]
[422987930,1779713448000,-150.0,0.00014772,2]
[422987933,1779713448000,-2006.0,0.000148,2]
[422987931,1779713448000,-500.0,0.00014793,2]
[422987939,1779713448000,-238.695986,0.0001486,2]
[422987936,1779713448000,-357.63888,0.0001485,2]
[422987929,1779713448000,-150.0,0.00014737,2]
[422987934,1779713448000,-400.0,0.000148,5]
[422987932,1779713448000,-193.0,0.00014796,2]
[422987927,1779713448000,-500.0,0.00014726,2]
[422987922,1779713448000,-150.0,0.00014664,2]
[422987923,1779713448000,-150.0,0.00014687,2]
[422987928,1779713448000,-1100.0,0.00014726,2]
[422987974,1779713449000,-500.0,0.00014999,2]
[422987971,1779713449000,-293.19155639,0.00014997,2]
[422987977,1779713449000,-500.0,0.00014999,2]
[422987973,1779713449000,-500.0,0.00014998,2]
[422987978,1779713449000,-500.0,0.00014999,2]
[422987980,1779713449000,-286.72433604,0.00014999,2]
[422987979,1779713449000,-500.0,0.00014999,2]
[422987976,1779713449000,-500.0,0.00014999,2]
[422987975,1779713449000,-500.0,0.00014999,2]
[422987981,1779713449000,-909671.9334911,0.00015,2]
[422987972,1779713449000,-500.0,0.00014998,2]
[422988011,1779713684000,-152.0,0.00012388,7]
[422988035,1779713860000,150.37,6.685e-05,2]
[422988107,1779713889000,4502.0,0.00028,120]
[422988191,1779714302000,1443.28457552,0.0002,120]
[422988205,1779714417000,6000.5,0.00028,120]
[422988212,1779714541000,1000.0,0.00027999,120]
[422988245,1779714632000,-150.0,0.00013452,5]
[422988249,1779714632000,-500.0,0.00013452,5]
[422988247,1779714632000,-500.0,0.00013452,5]
[422988248,1779714632000,-500.0,0.00013452,5]
[422988246,1779714632000,-500.0,0.00013452,5]
[422988251,1779714632000,-500.0,0.00013452,5]
[422988250,1779714632000,-500.0,0.00013452,5]
[422988252,1779714632000,-500.0,0.00013452,5]
[422988253,1779714632000,-500.0,0.00013452,5]
[422988220,1779714632000,-152.0,0.00012398,7]
[422988256,1779714632000,-150.0,0.00013488,2]
[422988255,1779714632000,-150.0,0.00013488,2]
[422988260,1779714632000,-150.0,0.00013488,2]
[422988259,1779714632000,-150.0,0.00013488,2]
[422988257,1779714632000,-150.0,0.00013488,2]
[422988262,1779714632000,-500.0,0.00013572,2]
[422988258,1779714632000,-150.0,0.00013488,2]
[422988264,1779714632000,-294.0,0.00013572,2]
[422988263,1779714632000,-500.0,0.00013572,2]
[422988244,1779714632000,-215.38528485,0.00013403,2]
[422988254,1779714632000,-425.85615515,0.00013452,5]
[422988243,1779714632000,-208.87966228,0.00013403,2]
[422988241,1779714632000,-2316.0,0.000134,2]
[422988219,1779714632000,-500.0,0.00012,2]
[422988226,1779714632000,-200.0,0.00012926,2]
[422988221,1779714632000,-221.19152794,0.00012398,2]
[422988224,1779714632000,-173.11,0.00012627,2]
[422988223,1779714632000,-397.52223,0.00012564,2]
[422988222,1779714632000,-221.19152794,0.00012555,2]
[422988225,1779714632000,-376.07,0.00012794,2]
[422988227,1779714632000,-500.0,0.00013,2]
[422988228,1779714632000,-165.31,0.00013095,2]
[422988229,1779714632000,-300.0,0.0001323,2]
[422988230,1779714632000,-1200.0,0.0001323,2]
[422988231,1779714632000,-3329.0,0.00013238,2]
[422988235,1779714632000,-500.0,0.00013356,2]
[422988236,1779714632000,-600.0,0.00013356,2]
[422988233,1779714632000,-384.0,0.00013343,2]
[422988237,1779714632000,-1100.0,0.00013356,2]
[422988240,1779714632000,-1589.0,0.000134,2]
[422988239,1779714632000,-1589.0,0.000134,2]
[422988238,1779714632000,-150.0,0.00013369,2]
[422988242,1779714632000,-160.0,0.00013403,2]
[422988265,1779714632000,-150.0,0.00013654,2]
[422988261,1779714632000,-455.11,0.00013555,2]
[422988268,1779714632000,-500.0,0.00013698,2]
[422988289,1779714632000,-500.0,0.00013698,2]
[422988293,1779714632000,-500.0,0.00013698,2]
[422988298,1779714632000,-166.66,0.00013699,2]
[422988296,1779714632000,-156.3,0.00013698,2]
[422988297,1779714632000,-200.0,0.00013699,2]
[422988295,1779714632000,-500.0,0.00013698,2]
[422988300,1779714632000,-1589.0,0.0001372,2]
[422988299,1779714632000,-500.0,0.000137,5]
[422988307,1779714632000,-5000.0,0.00013747,2]
[422988291,1779714632000,-500.0,0.00013698,2]
[422988306,1779714632000,-2500.0,0.00013747,2]
[422988310,1779714632000,-150.0,0.00013821,2]
[422988308,1779714632000,-3140.68030612,0.0001377,2]
[422988302,1779714632000,-1589.0,0.0001372,2]
[422988303,1779714632000,-1589.0,0.0001372,2]
[422988309,1779714632000,-1100.0,0.000138,5]
[422988305,1779714632000,-4173.0173,0.00013747,2]
[422988304,1779714632000,-163.0,0.0001372,2]
[422988311,1779714632000,-166.66,0.00013836,2]
[422988266,1779714632000,-500.0,0.00013698,2]
[422988301,1779714632000,-1589.0,0.0001372,2]
[422988292,1779714632000,-500.0,0.00013698,2]
[422988294,1779714632000,-500.0,0.00013698,2]
[422988288,1779714632000,-500.0,0.00013698,2]
[422988270,1779714632000,-500.0,0.00013698,2]
[422988267,1779714632000,-500.0,0.00013698,2]
[422988269,1779714632000,-500.0,0.00013698,2]
[422988271,1779714632000,-402.85,0.00013698,2]
[422988273,1779714632000,-500.0,0.00013698,2]
[422988290,1779714632000,-500.0,0.00013698,2]
[422988276,1779714632000,-500.0,0.00013698,2]
[422988275,1779714632000,-500.0,0.00013698,2]
[422988274,1779714632000,-500.0,0.00013698,2]
[422988277,1779714632000,-500.0,0.00013698,2]
[422988272,1779714632000,-500.0,0.00013698,2]
[422988280,1779714632000,-500.0,0.00013698,2]
[422988278,1779714632000,-500.0,0.00013698,2]
[422988281,1779714632000,-500.0,0.00013698,2]
[422988282,1779714632000,-193.14,0.00013698,2]
[422988283,1779714632000,-500.0,0.00013698,2]
[422988287,1779714632000,-500.0,0.00013698,2]
[422988286,1779714632000,-500.0,0.00013698,2]
[422988284,1779714632000,-500.0,0.00013698,2]
[422988279,1779714632000,-500.0,0.00013698,2]
[422988285,1779714632000,-500.0,0.00013698,2]
[422988318,1779714633000,-500.0,0.00013846,2]
[422988319,1779714633000,-500.0,0.00013846,2]
[422988320,1779714633000,-500.0,0.00013846,2]
[422988316,1779714633000,-500.0,0.00013846,2]
[422988313,1779714633000,-151.0,0.00013844,2]
[422988314,1779714633000,-500.0,0.00013846,2]
[422988322,1779714633000,-500.0,0.00013846,2]
[422988312,1779714633000,-151.0,0.00013844,2]
[422988317,1779714633000,-500.0,0.00013846,2]
[422988315,1779714633000,-172.40932603,0.00013846,2]
[422988323,1779714633000,-500.0,0.00013846,2]
[422988321,1779714633000,-500.0,0.00013846,2]
[422988329,1779714633000,-500.0,0.00013846,2]
[422988325,1779714633000,-500.0,0.00013846,2]
[422988328,1779714633000,-304.1300146,0.00013846,2]
[422988327,1779714633000,-500.0,0.00013846,2]
[422988326,1779714633000,-500.0,0.00013846,2]
[422988331,1779714633000,-167.76551027,0.00013846,2]
[422988330,1779714633000,-500.0,0.00013846,2]
[422988332,1779714633000,-238.75188369,0.00013846,2]
[422988333,1779714633000,-500.0,0.00013846,2]
[422988334,1779714633000,-500.0,0.00013846,2]
[422988336,1779714633000,-50438.55173419,0.00013847,2]
[422988335,1779714633000,-500.0,0.00013846,2]
[422988324,1779714633000,-500.0,0.00013846,2]
[422988338,1779714640000,-150.0,0.00012119,2]
[422988339,1779714640000,-150.0,0.00012239,2]
[422988342,1779714640000,-963.76004824,0.00013847,2]
[422988341,1779714640000,-396.77834214,0.00013847,2]
[422988340,1779714640000,-183.0,0.00012359,2]
[422988356,1779714643000,-478.51655685,0.00013847,2]
[422988355,1779714643000,-2190.06356421,0.00013847,2]
[422988353,1779714643000,-676.05694954,0.00013847,2]
[422988354,1779714643000,-1274.0174902,0.00013847,2]
[422988350,1779714643000,-5958.18005724,0.00013847,2]
[422988361,1779714646000,-8449.38137617,0.00013847,2]
[422988362,1779714647000,-15638.78,0.00013847,2]
[422988364,1779714790000,151.98,6.506e-05,2]